Cogmind - Beta 13 @@@ ROGUE MODE // 2024.05.19 @ 18:59:21 Player: Waste Result: Destroyed by NK-0LA with NK-0LA's Tesla Doomcannon Performance ------------- Evolutions (1) 500 Regions Visited (6) 1200 Robots Destroyed (42) 210 Value Destroyed (1040) 1040 Prototype IDs (25) 500 Alien Tech Used (0) 0 Bonus (282) 282 TOTAL SCORE: 3732 Bonus ------- Follower Combat Kills 90 Aligned with FarCom 300 Friendly Fire -108 Cogmind --------- Core Integrity 0/400 Matter 321/500 Energy 100/100 System Corruption 5% Temperature Cool (0) Movement Treading (320) Ox2 Location -8/Mines Parts ------- > --- POWER (1) -------- (None) > --- PROPULSION (2) --- Improved Treads > --- UTILITY (4) ------ Heat Sink High-capacity Storage Unit High-capacity Matter Pod > --- WEAPON (2) ------- Grenade Launcher > --- INVENTORY (20) --- Heavy Ion Engine Nuclear Core Reinforced Deuterium Engine Light Fission Core Disposable Heat Sink Medium Storage Unit Gravity Neutralizer PSU Rigger AS-neutralizer No. 17b AWS/Thermal Guided Plasma Cannon Heavy Assault Rifle Autogun Autogun 8R-AWN's Boregun Peak State ------------ > --- POWER ------------ Heavy Ion Engine > --- PROPULSION ------- Improved Aluminum Leg Improved Aluminum Leg > --- UTILITY ---------- Heat Sink High-capacity Storage Unit High-capacity Matter Pod Thief Drone Bay > --- WEAPON ----------- Heavy Assault Rifle Heavy Assault Rifle > --- INVENTORY -------- Heavy Ion Engine Nuclear Core Reinforced Deuterium Engine Light Fission Core Improved Treads Improved Treads Disposable Heat Sink Medium Storage Unit Gravity Neutralizer PSU Rigger AS-neutralizer No. 17b AWS/Thermal Guided Plasma Cannon Heavy Assault Rifle Heavy Assault Rifle Autogun Autogun 8R-AWN's Boregun Grenade Launcher [Rating: 29] Favorites ----------- Power Heavy Ion Engine Engine Heavy Ion Engine Propulsion Improved Aluminum Leg Treads Improved Treads Leg Improved Aluminum Leg Utility Light Armor Plating Device Heat Sink Storage Medium Storage Unit Protection Light Armor Plating Weapon Heavy Assault Rifle Energy Gun Medium Laser Ballistic Gun Heavy Assault Rifle Ballistic Cannon Improved Light Cannon Launcher Grenade Launcher Build | -11 -10 -10 -9 -9 -9 -8 ------- Run | Yrd Mat Min Mat Min Exi Min Slots Evolved 2 | . . . 2 . . . Power . | . . . . . . . Propulsion . | . . . . . . . Utility 2 | . . . 2 . . . Weapon . | . . . . . . . Parts Attached 38 | . 8 1 17 2 9 1 Power 2 | . 2 . . . . . Engine 2 | . 2 . . . . . Core . | . . . . . . . Reactor . | . . . . . . . Propulsion 10 | . . . 8 . 2 . Treads 4 | . . . 2 . 2 . Leg 6 | . . . 6 . . . Wheel . | . . . . . . . Hover . | . . . . . . . Flight . | . . . . . . . Utility 14 | . 1 1 5 2 5 . Device 5 | . . . 2 1 2 . Storage 4 | . . 1 . . 3 . Processor . | . . . . . . . Hackware . | . . . . . . . Protection 5 | . 1 . 3 1 . . Artifact . | . . . . . . . Weapon 12 | . 5 . 4 . 2 1 Energy Gun 3 | . 3 . . . . . Energy Cannon . | . . . . . . . Ballistic Gun 6 | . . . 4 . 2 . Ballistic Cannon 2 | . 2 . . . . . Launcher 1 | . . . . . . 1 Special Weapon . | . . . . . . . Impact Weapon . | . . . . . . . Slashing Weapon . | . . . . . . . Piercing Weapon . | . . . . . . . Special Melee Weapon . | . . . . . . . Unidentified Prototypes 2 | . 1 . . 1 . . Parts Lost 12 | . 2 . 3 1 4 2 Power 1 | . . . . . . 1 Propulsion 2 | . . . . . 2 . Utility 4 | . . . 3 1 . . Weapon 5 | . 2 . . . 2 1 Highest Loss Streak 4 | . 2 . 1 1 4 2 To Critical Strikes 2 | . . . . . 2 . Average Slot Usage (%) 91 | . 95 100 95 98 80 71 Engine 11 | . 14 14 11 11 11 5 Leg 23 | . 28 28 21 22 21 . Device 8 | . . . 2 22 13 16 Storage 12 | . 14 14 11 11 11 22 Protection 10 | . 10 14 26 9 . . Ballistic Gun 14 | . . . 15 22 21 5 Ballistic Cannon 8 | . 16 28 6 . . . Naked Turns . | . . . . . . . Heaviest Build 215 | 14 24 29 35 29 215 . Greatest Support 46 | 20 20 20 40 26 46 . Greatest Overweight (x) 8 | . 1 1 2 1 8 . Average Overweight (x) 1 | . . 1 . . 3 . Largest Inventory Capacity 35 | . 8 10 10 10 35 20 Average Capacity 15 | . 8 9 10 10 27 20 Most Carried 20 | . 8 10 10 10 20 16 Average Carried 11 | . 7 9 9 10 14 16 Final Capacity 20 | 8 8 10 10 10 20 20 Final Carried 16 | 6 8 10 10 10 16 16 Class Distribution -------------------- 66% | Mutant 20% | Hauler-Mutant 12% | Scavenger-Mutant Dominant Class ---------------- Mutant | -10/Materials Mutant | -10/Mines Mutant | -9/Materials Scavenger-Mutant | -9/Mines Hauler-Mutant | -9/Exiles Hauler-Mutant | -8/Mines Resources | -11 -10 -10 -9 -9 -9 -8 ----------- Run | Yrd Mat Min Mat Min Exi Min Matter Collected 1068 | 200 69 137 582 80 . . Remotely . | . . . . . . . Salvage Created 1266 | . 227 . 940 47 . 52 Parts 90 | . 14 . 67 5 . 4 Haulers Intercepted 6 | . 2 . 4 . . . Recyclers Shooed 1 | . . . . 1 . . Parts Field Recycled . | . . . . . . . Retrieved Matter . | . . . . . . . Parts Self-Destructed . | . . . . . . . Prevented . | . . . . . . . Kills | -11 -10 -10 -9 -9 -9 -8 ------- Run | Yrd Mat Min Mat Min Exi Min Combat Hostiles Destroyed 27 | . 3 . 19 3 . 2 Guns 18 | . 2 . 13 3 . . Cannons 6 | . . . 6 . . . AOE 3 | . 1 . . . . 2 Classes Destroyed 7 | . 4 . 3 . . . Worker 4 | . 1 . 3 . . . Hauler 6 | . 2 . 4 . . . Watcher 5 | . 1 . 4 . . . Swarmer 6 | . . . 3 3 . . Grunt 14 | . 3 . 10 . . 1 Duelist 2 | . . . 1 . . 1 Sentry 5 | . . . 5 . . . Best Kill Streak 5 | . 3 . 5 3 . 2 Combat Bots Only 3 | . 3 . 3 3 . 2 Max Kills in Single Turn 2 | . 2 . 2 1 . 2 Gunslinging 1 | . . . 1 . . . Exploded 2 | . 1 . . . . 2 Melee . | . . . . . . . Uniques/NPCs Destroyed . | . . . . . . . Combat | -11 -10 -10 -9 -9 -9 -8 -------- Run | Yrd Mat Min Mat Min Exi Min Hostile Shots Fired 190 | . 7 4 80 18 45 36 Missed 57 | . . . 20 5 17 15 Damage Taken 2191 | . 149 122 764 104 478 574 Core 424 | . . . 140 8 85 191 Absorbed by Shields . | . . . . . . . Core Remaining (%) 100 | 100 . 100 . . . . Volleys Fired 106 | . 11 2 75 5 6 7 Largest 2 | . 2 2 2 2 2 2 Hottest 90 | . 90 78 78 46 46 53 Shots Fired 205 | . 21 4 150 10 12 8 Gun 154 | . 11 . 120 10 12 1 Cannon 44 | . 10 4 30 . . . Launcher 7 | . . . . . . 7 Special . | . . . . . . . Kinetic 187 | . 10 4 150 10 12 1 Thermal 4 | . 4 . . . . . Explosive 7 | . . . . . . 7 Electromagnetic 7 | . 7 . . . . . Robot Hit Streak 18 | . 14 18 8 5 8 3 Robot Miss Streak 3 | . 1 . 3 1 1 2 Penetration Max . | . . . . . . . Secondary Targets 1 | . . . 1 . . . Max Gunslinging Chain 1 | . . . 1 . . . Shots Hit Robots 132 | . 18 4 88 7 10 5 Core Hits 65 | . 10 1 43 3 1 7 Critical Kills . | . . . . . . . Critical Parts Destroyed . | . . . . . . . Critical Strikes 2 | . 1 . 1 . . . Blast 2 | . 1 . 1 . . . Melee Attacks . | . . . . . . . Impact . | . . . . . . . Slashing . | . . . . . . . Piercing . | . . . . . . . Sneak Attacks . | . . . . . . . Combat Hostiles . | . . . . . . . Follow-up Attacks . | . . . . . . . Damage Inflicted 2675 | . 476 90 1499 152 156 302 Guns 1476 | . 103 . 1077 140 156 . Cannons 697 | . 202 88 407 . . . Explosions 443 | . 141 . . . . 302 Melee . | . . . . . . . Ramming 59 | . 30 2 15 12 . . Kinetic 2070 | . 202 88 1484 140 156 . Thermal 176 | . 176 . . . . . Explosive 302 | . . . . . . 302 Electromagnetic 68 | . 68 . . . . . Impact . | . . . . . . . Slashing . | . . . . . . . Piercing . | . . . . . . . Highest Corruption 5 | . 5 5 . . . 4 Average Corruption 4 | . 4 5 . . . 3 Corruption Purged . | . . . . . . . Corruption Blocked . | . . . . . . . Effects 28 | . 4 23 . . . 1 Message Errors 9 | . 1 8 . . . . Matter Fused 4 | . . 4 . . . . Heat Flow Errors 5 | . 2 3 . . . . Energy Discharges 3 | . . 3 . . . . Data Loss (minor) 2 | . . 2 . . . . Data Loss (major) 2 | . . 2 . . . . Alerts 2 | . 1 1 . . . . Weapon Failures 1 | . . . . . . 1 Overload Shots . | . . . . . . . Overflow Damage 29 | . 29 . . . . . Projectiles . | . . . . . . . Explosions 29 | . 29 . . . . . Melee . | . . . . . . . Knockbacks 2 | . . 1 1 . . . Impact 1 | . . . 1 . . . Kinetic 1 | . . 1 . . . . Secondary . | . . . . . . . Self-Inflicted Damage 179 | . 55 . . . . 124 Shots 6 | . 1 . . . . 5 Rammed . | . . . . . . . Targets Rammed 17 | . 11 1 4 1 . . Kicked 17 | . 11 1 4 1 . . Crushed . | . . . . . . . Highest Temperature 246 | . 160 246 180 . . 19 Average Temperature 46 | . 55 87 35 . . 11 Received Heat Transfer 498 | . 54 . 330 . 6 108 Siege Activations . | . . . . . . . Robots Corrupted . | . . . . . . . Combat Hostiles . | . . . . . . . Parts Fried . | . . . . . . . Impact Corruptions . | . . . . . . . Robots Melted . | . . . . . . . Combat Hostiles . | . . . . . . . Parts Melted . | . . . . . . . Heat Transferred 199 | . 199 . . . . . Parts Sabotaged . | . . . . . . . Parts Stolen . | . . . . . . . Parts Stripped . | . . . . . . . Power Chain Reactions 1 | . 1 . . . . . Alert | -11 -10 -10 -9 -9 -9 -8 ------- Run | Yrd Mat Min Mat Min Exi Min Peak Influence 375 | . 79 23 375 103 . 95 Initial 102 | . . 4 8 102 . . Average 96 | . 48 6 215 64 . 64 Maximum Alert Level 1 | . . . 1 . . . Low Security (%) 78 | . 100 100 38 100 . 100 Level 1 21 | . . . 61 . . . Level 2 . | . . . . . . . Level 3 . | . . . . . . . Level 4 . | . . . . . . . Level 5 . | . . . . . . . High Security . | . . . . . . . Max Security . | . . . . . . . Squads Dispatched 3 | . . . 3 . . . Investigation . | . . . . . . . Extermination . | . . . . . . . Reinforcement 3 | . . . 3 . . . Assault . | . . . . . . . Garrison . | . . . . . . . Intercept . | . . . . . . . Searches Triggered . | . . . . . . . Construction Impeded . | . . . . . . . Haulers Reinforced . | . . . . . . . Active Scanning Responses . | . . . . . . . Cargo Convoy Interrupts . | . . . . . . . Stealth | -11 -10 -10 -9 -9 -9 -8 --------- Run | Yrd Mat Min Mat Min Exi Min Distress Signals 4 | . . . 4 . . . Communications Jammed . | . . . . . . . Distress Signals . | . . . . . . . Times Spotted 84 | . 6 10 32 3 29 4 Peak Tracking Total 16 | . 3 7 4 3 16 4 Tactical Retreats 5 | . . . . . 5 . Traps | -11 -10 -10 -9 -9 -9 -8 ------- Run | Yrd Mat Min Mat Min Exi Min Traps Triggered 1 | . 1 . . . . . Indirectly . | . . . . . . . Trap Hack Attempts . | . . . . . . . Triggered . | . . . . . . . Disarmed . | . . . . . . . Reprogrammed . | . . . . . . . Reused . | . . . . . . . Traps Extracted . | . . . . . . . Installed . | . . . . . . . Triggered . | . . . . . . . Machines | -11 -10 -10 -9 -9 -9 -8 ---------- Run | Yrd Mat Min Mat Min Exi Min Machines Disabled 5 | . . . 4 . . 1 Max in Single Turn 1 | . . . 1 . . 1 Machines Repaired . | . . . . . . . Machines Dismantled . | . . . . . . . Machines Sabotaged . | . . . . . . . Overloaded Fab Kills . | . . . . . . . Hacking | -11 -10 -10 -9 -9 -9 -8 --------- Run | Yrd Mat Min Mat Min Exi Min Machines Accessed 7 | . 2 . 2 2 1 . Terminals 5 | . 2 . 2 1 . . Fabricators . | . . . . . . . Repair Stations . | . . . . . . . Recycling Units . | . . . . . . . Scanalyzers . | . . . . . . . Garrison Access . | . . . . . . . Total Hacks 19 | . 10 . 4 4 1 . Successful 10 | . 3 . 2 4 1 . Failed 9 | . 7 . 2 . . . Catastrophic 1 | . . . 1 . . . Database Lockouts . | . . . . . . . Manual 8 | . 7 . . . 1 . Terminals 17 | . 10 . 4 3 . . Fabricators . | . . . . . . . Repair Stations . | . . . . . . . Recycling Units . | . . . . . . . Scanalyzers . | . . . . . . . Garrison Access . | . . . . . . . Terminal Hacks 10 | . 3 . 2 4 1 . Record 3 | . . . . 3 . . Robot Analysis 2 | . 2 . . . . . Open Door 1 | . . . . 1 . . Branch Access Points 2 | . 1 . 1 . . . Locate Traps 1 | . . . 1 . . . Derelict Proto ID Bank 1 | . . . . . 1 . Fabricator Hacks . | . . . . . . . Repair Station Hacks . | . . . . . . . Recycling Unit Hacks . | . . . . . . . Scanalyzer . | . . . . . . . Garrison Access Hacks . | . . . . . . . Unauthorized Hacks . | . . . . . . . Terminals . | . . . . . . . Fabricators . | . . . . . . . Repair Stations . | . . . . . . . Recycling Units . | . . . . . . . Scanalyzers . | . . . . . . . Garrison Access . | . . . . . . . Data Cores Recovered . | . . . . . . . Used . | . . . . . . . Hacking Detections 5 | . 2 . 2 1 . . Full Trace Events . | . . . . . . . Feedback Events . | . . . . . . . Feedback Blocked . | . . . . . . . Robot Schematics Acquired . | . . . . . . . Robots Built . | . . . . . . . Authchips . | . . . . . . . Time . | . . . . . . . Total Robot Build Rating . | . . . . . . . Part Schematics Acquired . | . . . . . . . Parts Built . | . . . . . . . Authchips . | . . . . . . . Time . | . . . . . . . Total Part Build Rating . | . . . . . . . Parts Repaired . | . . . . . . . Time . | . . . . . . . Parts Recycled . | . . . . . . . Recycled Matter . | . . . . . . . Retrieved Matter . | . . . . . . . Retrieved Components . | . . . . . . . Parts Scanalyzed . | . . . . . . . Part Schematics Acquired . | . . . . . . . Parts Damaged . | . . . . . . . Bothacking | -11 -10 -10 -9 -9 -9 -8 ------------ Run | Yrd Mat Min Mat Min Exi Min Used RIF Installer . | . . . . . . . Robots Hacked . | . . . . . . . Non-combat . | . . . . . . . Combat . | . . . . . . . Robot Hacks Applied . | . . . . . . . Relay Couplers Released . | . . . . . . . Fabnet Peak Effective % . | . . . . . . . Robots Rewired . | . . . . . . . Allies Hacked . | . . . . . . . Hacks Repelled . | . . . . . . . Allies | -11 -10 -10 -9 -9 -9 -8 -------- Run | Yrd Mat Min Mat Min Exi Min Total Allies 3 | . . 3 . . . . Largest Group 3 | . . 3 2 . . . Highest-Rated Group 40 | . . 40 32 . . . Highest-Rated Ally 16 | . . 16 16 . . . Total Orders . | . . . . . . . Ally Attacks 34 | . . 3 14 . 17 . Total Damage 273 | . . 24 163 . 86 . Kills 4 | . . 1 2 . 1 . Allies Corrupted . | . . . . . . . Allies Melted . | . . . . . . . Intel | -11 -10 -10 -9 -9 -9 -8 ------- Run | Yrd Mat Min Mat Min Exi Min Robot Analysis Total 2 | . 2 . . . . . Derelict Logs Recovered 6 | . . 3 . 3 . . Drone Launches 7 | . . . . . 7 . Drone Recoveries 4 | . . . . . 4 . Exploration | -11 -10 -10 -9 -9 -9 -8 ------------- Run | Yrd Mat Min Mat Min Exi Min Turns Passed 5580 | . 505 1119 1258 738 1944 16 Spaces Moved 2268 | 1 270 581 506 410 500 . Core . | . . . . . . . Treads 26 | . . . 3 . 23 . Legs 2242 | 1 270 581 503 410 477 . Wheels . | . . . . . . . Hover . | . . . . . . . Flight . | . . . . . . . Fastest Speed 120 | 120 120 190 120 120 120 . Average Speed 224 | 120 153 190 189 174 381 . Slowest Speed 680 | 120 190 190 260 190 680 . Overloaded Moves . | . . . . . . . Propulsion Burnouts . | . . . . . . . Robots Hopped . | . . . . . . . Cave-ins Triggered . | . . . . . . . Exploration Rate (%) 51 | 2 42 95 62 86 70 4 Regions Visited 6 Branch Regions 4 Pre-discovered Areas 2 | . . 1 . 1 . . Known Exits Taken 2 | . 1 . 1 . . . Unknown Exits Taken 4 | 1 . 1 . 1 1 . Scrap Searched 3 | . . 1 . 2 . . Spaces Dug . | . . . . . . . Terrain Destroyed 51 | . 2 . . . . 49 Melee . | . . . . . . . Projectile . | . . . . . . . AOE 51 | . 2 . . . . 49 Terrain Rammed . | . . . . . . . Walls Destroyed . | . . . . . . . Machines Disabled . | . . . . . . . Actions | -11 -10 -10 -9 -9 -9 -8 --------- Run | Yrd Mat Min Mat Min Exi Min Total 2540 | . 332 592 660 421 526 9 Wait 49 | . 18 5 26 . . . Move 2262 | . 269 580 505 409 499 . Hop . | . . . . . . . Pick Up 30 | . 7 2 12 1 8 . Fast Attach 18 | . 6 . 8 2 2 . Attach 11 | . 1 . 3 . 7 . Detach 1 | . . . . . 1 . Swap 9 | . 1 1 6 . . 1 Drop 37 | . 8 1 21 3 3 1 Fire 106 | . 11 2 75 5 6 7 Melee . | . . . . . . . Ram . | . . . . . . . Kick 17 | . 11 1 4 1 . . Crush . | . . . . . . . Escape Stasis . | . . . . . . . Rewire . | . . . . . . . Trap . | . . . . . . . Miscellaneous . | . . . . . . . Route ------- -11/Scrapyard -10/Materials (discovered 2 exits: *Mat / *Min) -10/Mines (discovered 3 exits: *Mat x2 / Sub) -9/Materials (discovered 4 exits: [*Mat x3] / *Min) -9/Mines (discovered 3 exits: [*Mat] / *Exi / [*Zio]) -9/Exiles -8/Mines History --------- Turn | Location | Event 1 | -11/Scrapyard | Discovered new exit (range 0) 1 | -11/Scrapyard | Entered Materials 98 | -10/Materials | Discovered new exit (range 6) 156 | -10/Materials | Identified exit to Mines 161 | -10/Materials | Discovered new exit (range 10) 308 | -10/Materials | Build established: Mutant 506 | -10/Materials | Entered Mines 741 | -10/Mines | Assembled infested the area 746 | -10/Mines | Assisted by a Guerilla fighting off Assembled 875 | -10/Mines | A weapon hastily lodged in a ceiling crevice suddenly fell to the ground 1222 | -10/Mines | Discovered new exit (range 11) 1346 | -10/Mines | Assisted by bots powering up and referring to "LRC-V3" 1365 | -10/Mines | Learned Materials emergency access door positions 1390 | -10/Mines | Identified exit to Subcaves 1491 | -10/Mines | Discovered new exit (range 3) 1625 | -10/Mines | Entered Materials 1625 | -9/Materials | Accompanied by 2 allies 1625 | -9/Materials | Evolved 2 slots: Utility x2 1861 | -9/Materials | Identified exit to Mines 2071 | -9/Materials | Discovered new exit (range 9) 2332 | -9/Materials | Discovered new exit (range 15) 2616 | -9/Materials | Discovered new exit (range 8) 2883 | -9/Materials | Entered Mines 2898 | -9/Mines | Received a Rocket Launcher from a helpful Derelict 2935 | -9/Mines | Discovered new exit (range 8) 3085 | -9/Mines | Build established: Scavenger-Mutant 3145 | -9/Mines | A Derelict revealed a hidden shortcut to a safe place 3172 | -9/Mines | Deemed a non-threat by the Exiles lab entrance 3172 | -9/Mines | Discovered new exit (range 5) 3365 | -9/Mines | Found the Drone Emporium 3376 | -9/Mines | Found Prototype Device 3376 | -9/Mines | Identified Thief Drone Bay 3451 | -9/Mines | Learned 2 Materials zone layouts 3621 | -9/Mines | Entered Exiles 3670 | -9/Exiles | Met 8R-AWN 3697 | -9/Exiles | Met EX-HEX 3815 | -9/Exiles | Build established: Mutant 4130 | -9/Exiles | Build established: Hauler-Mutant 4692 | -9/Exiles | Met EX-DEC 5109 | -9/Exiles | Met EX-BIN 5140 | -9/Exiles | Aligned with FarCom system 5142 | -9/Exiles | Given EX-Vault access code 5202 | -9/Exiles | Opened EX-Vault 5218 | -9/Exiles | Found AWS/Thermal 5221 | -9/Exiles | Found Gui. Plasma Cannon 5228 | -9/Exiles | Found PSU Rigger 5252 | -9/Exiles | Build established: Mutant 5283 | -9/Exiles | Warned to stay clear of 0b10 Research branches 5310 | -9/Exiles | Exiles lab attacked by MAIN.C 5464 | -9/Exiles | Attacked by the Exiles 5492 | -9/Exiles | Core integrity fell below 50% 5537 | -9/Exiles | Lost 4 parts (2n2w) 5545 | -9/Exiles | Discovered new exit (range 10) 5565 | -9/Exiles | Stole three prototypes: PSU Rigger, AWS/Thermal, Gui. Plasma Cannon 5565 | -9/Exiles | Entered Mines 5568 | -8/Mines | NK-0LA came to Exiles' defense 5574 | -8/Mines | Core integrity fell below 20% 5581 | -8/Mines | Destroyed by NK-0LA with NK-0LA's Tesla Doomcannon Last Messages --------------- 05533_ Slug penetrates 8R-AWN. 05534_ HV Slug penetrates Wall. 05534_ 8R-AWN destroyed. 05545_ EXIT=FOUND 05561_ Imp. Treads severed. A strange signal echoes through the mines. LOCATION=UNKNOWN GOAL=ESCAPE 05567_ Laser Drill disabled. 05568_ NK-0LA: "I came as fast as I could... Wait, it was you!" 05569_ L-31 Rogue destroyed. 05569_ G-47 Trooper destroyed. 05569_ Critical hit (Burn: +37). 05571_ The unstable cave ceiling collapses. 05573_ Dropped Thief Drone Bay. 05574_ System corrupted: Hvy. Assault Rifle jammed. 05577_ Critical hit (Burn: +37). 05578_ Hvy. Ion Engine destroyed. 05578_ Hvy. Assault Rifle destroyed. 05579_ The unstable cave ceiling collapses. Map ----- +----------------------------------------------------+ | ?????????????????????????????????????????????????? | | ?????????????????????????????????????????????????? | | ?????????????????????????????????????????????????? | | ?????????????????????????????????????????????????? | | ?????????????????????????????????????????????????? | | ?????????????????????????????????????????????????? | | ?????????????????????????????????????????????????? | | ?????????????????????????????????????????????????? | | ?????????????????????????????????????????????????? | | ?????????????????????????????????????????????????? | | ???????????????????????? ????????????????????????? | | ???????????????????????? ????????????????????????? | | ???????????????????????? ????????????????????????? | | ???????????????????????# ????????????????????????? | | ???????????????????????# ????????????????????????? | | ???????????????????????# ????????????????????????? | | ?????????????????????### ###?????????????????????? | | ?????????????????????# #?????????????????????? | | ????????????????????## ?????????????????????? | | ????????????????????# ##????????????????????? | | ????????????????????# #????????????????????? | | ????????????????????# x #????????????????????? | | ????????????????????## ####?????????????????? | | ????????????????????# ##????????????????? | | ?????????????????????# #????????????????? | | ?????????????????????# @ " #????????????????? | | ?????????????????????# % " #????????????????? | | ?????????????????????## =%= #????????????????? | | ?????????????????????## g #????????????????? | | ??????????????????????## # ###????????????????? | | ???????????????????????# #####??????????????????? | | ???????????????????????####??????????????????????? | | ?????????????????????????????????????????????????? | | ?????????????????????????????????????????????????? | | ?????????????????????????????????????????????????? | | ?????????????????????????????????????????????????? | | ?????????????????????????????????????????????????? | | ?????????????????????????????????????????????????? | | | | | | | | | | | | | | | | | | | | | | | | | +----------------------------------------------------+ Best States ------------- Heat Dissipation 38 Coolant Potential 50 Energy Generation 14 Energy Capacity 280 Matter Stores 426 Matter Capacity 500 Sight Range 16 Terrain Scan Density 10 Armor Coverage 450 Evasion (%) 55 Recoil Reduction 2 Item Schematics ----------------- None Robot Schematics ------------------ None Fabricated ------------ Nothing Alien Tech Used ----------------- None Achievements -------------- None Challenges ------------ None Game ------ Seed ElectronHardcellUnit Manual? 0 Play Time 00:18:32 Cumulative 229.6 hours Start 2024.05.19 @ 18:41:35 End 2024.05.19 @ 18:59:21 Sessions 1 Manual Loads 0 Difficulty Rogue Special Mode None Game No. 289 Rogue 289 Adventurer 0 Explorer 0 Win Type - Total 8 Types 4/1/0/1/1/0/0/1/0 Lore% 72 Gallery% 80 Achievement% 69 Wizard Run 0 Options --------- Layout 0 ASCII 0 Keyboard 0 Movement Numpad Keybinds 0 Fullscreen 1 Font 18/SmallcapsGlow Map View 76x50 Zoom Use 0% Tactical HUD 1 Map Filters NONE Filters NONE Steam 1 RUN: 2bac198d-723a-401f-89a2-7f35bc928687